Cogmind - Beta 11 @@@ ROGUE MODE // 2022.04.08 @ 00:35:54 Player: RNGesus Result: Destroyed by B-36 Bruiser with Hammer Performance ------------- Evolutions (1) 500 Regions Visited (4) 800 Robots Destroyed (86) 430 Value Destroyed (2284) 2284 Prototype IDs (2) 40 Alien Tech Used (0) 0 Bonus (680) 680 TOTAL SCORE: 4734 Bonus ------- High Alert Combat Kills 487 Follower Combat Kills 193 Cogmind --------- Core Integrity 0/400 Matter 297/300 Energy 77/100 System Corruption 0% Temperature Cool (0) Movement Treading (240) Ox1 Location -9/Storage Parts ------- > --- POWER (1) -------- (None) > --- PROPULSION (3) --- Light Treads Light Treads > --- UTILITY (3) ------ Improved Heat Sink High-capacity Storage Unit Targeting Computer > --- WEAPON (2) ------- Beamcaster Improved Assault Rifle > --- INVENTORY (20) --- Reinforced Ion Engine Light Treads Light Treads Light Treads Wheel Improved Heat Sink Huge Storage Unit Transport Network Coupler Hardened Light Armor Plating Hardened Light Armor Plating Hardened Light Armor Plating Improved Assault Rifle Improved Assault Rifle Rocket Launcher Rocket Launcher Hammer Katana Peak State ------------ > --- POWER ------------ Light Angular Momentum Engine > --- PROPULSION ------- Light Treads Light Treads Light Treads > --- UTILITY ---------- Improved Heat Sink High-capacity Storage Unit Targeting Computer > --- WEAPON ----------- Improved Assault Rifle Improved Assault Rifle > --- INVENTORY -------- Reinforced Ion Engine Light Treads Light Treads Light Treads Wheel Improved Heat Sink Huge Storage Unit Transport Network Coupler Hardened Light Armor Plating Hardened Light Armor Plating Hardened Light Armor Plating Beamcaster Improved Assault Rifle Improved Assault Rifle Rocket Launcher Rocket Launcher Hammer [Rating: 22] Favorites ----------- Power Light Ion Engine Engine Light Ion Engine Power Core Light Nuclear Core Propulsion Light Treads Treads Light Treads Wheel Wheel Utility Improved Heat Sink Device Improved Heat Sink Storage Medium Storage Unit Processor Targeting Computer Weapon Improved Assault Rifle Energy Gun EM Pulse Gun Ballistic Gun Improved Assault Rifle Launcher Rocket Launcher Impact Weapon Hammer Build | -11 -10 -10 -9 -9 ------- Run | Scr Mat Min Mat Sto Slots Evolved 2 | . . . 2 . Power . | . . . . . Propulsion 1 | . . . 1 . Utility 1 | . . . 1 . Weapon . | . . . . . Parts Attached 63 | 8 6 16 28 5 Power 7 | 2 . 2 3 . Engine 5 | 2 . 1 2 . Core 2 | . . 1 1 . Reactor . | . . . . . Propulsion 17 | 2 . 1 12 2 Treads 15 | 2 . 1 10 2 Leg . | . . . . . Wheel 2 | . . . 2 . Hover . | . . . . . Flight . | . . . . . Utility 6 | 2 1 1 2 . Device 2 | 1 . 1 . . Storage 3 | 1 1 . 1 . Processor 1 | . . . 1 . Hackware . | . . . . . Protection . | . . . . . Artifact . | . . . . . Weapon 33 | 2 5 12 11 3 Energy Gun 3 | 1 . . 1 1 Energy Cannon . | . . . . . Ballistic Gun 20 | 1 3 7 8 1 Ballistic Cannon . | . . . . . Launcher 9 | . 2 5 2 . Special Weapon . | . . . . . Impact Weapon 1 | . . . . 1 Slashing Weapon . | . . . . . Piercing Weapon . | . . . . . Special Melee Weapon . | . . . . . Unidentified Prototypes 2 | . . . 2 . Parts Lost 9 | . . 5 2 2 Power 3 | . . 2 1 . Propulsion 3 | . . 1 1 1 Utility 1 | . . 1 . . Weapon 2 | . . 1 . 1 Highest Loss Streak 2 | . . 2 2 2 To Critical Strikes . | . . . . . Average Slot Usage (%) 96 | . 100 93 96 98 Engine 10 | . 14 7 10 10 Treads 29 | . 28 27 30 31 Device 11 | . 14 13 11 11 Storage 12 | . 14 14 11 11 Processor 6 | . . . 9 11 Ballistic Gun 23 | . 25 27 21 20 Naked Turns . | . . . . . Heaviest Build 56 | 14 22 21 56 56 Greatest Support 60 | 40 40 40 60 60 Greatest Overweight (x) 5 | 3 . . 5 1 Average Overweight (x) . | . . . . . Largest Inventory Capacity 20 | 8 10 10 20 20 Average Capacity 12 | 7 9 10 12 20 Most Carried 17 | 3 10 10 13 17 Average Carried 9 | 2 8 9 9 14 Final Capacity 20 | 8 10 10 20 20 Final Carried 17 | 3 10 8 13 17 Class Distribution -------------------- 51% | Mutant 48% | Scavenger-Mutant Dominant Class ---------------- Mutant | -10/Materials Mutant | -10/Mines Scavenger-Mutant | -9/Materials Scavenger-Mutant | -9/Storage Resources | -11 -10 -10 -9 -9 ----------- Run | Scr Mat Min Mat Sto Matter Collected 2169 | 240 218 591 810 310 Remotely . | . . . . . Salvage Created 3319 | 35 311 613 1765 595 Parts 195 | 6 25 41 94 29 Haulers Intercepted 8 | . 1 . 6 1 Recyclers Shooed 4 | . . 2 2 . Parts Field Recycled . | . . . . . Retrieved Matter . | . . . . . Parts Self-Destructed . | . . . . . Prevented . | . . . . . Kills | -11 -10 -10 -9 -9 ------- Run | Scr Mat Min Mat Sto Combat Hostiles Destroyed 72 | . 9 24 28 11 Guns 53 | . 3 15 24 11 AOE 19 | . 6 9 4 . Classes Destroyed 11 | 1 3 4 3 . Worker 2 | . . . 2 . Tunneler 3 | 2 . 1 . . Hauler 8 | . 1 . 6 1 Recycler 5 | . . 1 3 1 Mechanic 2 | . . 2 . . Swarmer 17 | . 6 9 2 . Grunt 31 | . 3 8 14 6 Brawler 3 | . . . 2 1 Duelist 4 | . . . 2 2 Sentry 11 | . . 1 8 2 Assembled 6 | . . 6 . . Best Kill Streak 7 | 2 3 6 7 5 Combat Bots Only 6 | . 3 6 5 5 Max Kills in Single Turn 3 | 1 3 3 3 1 Gunslinging 1 | . . 1 . . Exploded 3 | . 3 2 2 . Melee . | . . . . . Uniques/NPCs Destroyed . | . . . . . Combat | -11 -10 -10 -9 -9 -------- Run | Scr Mat Min Mat Sto Damage Taken 3171 | . 191 873 1190 917 Core 572 | . . 148 132 292 Absorbed by Shields . | . . . . . Core Remaining (%) 70 | 100 . 40 . . Volleys Fired 217 | 3 20 69 78 47 Largest 2 | 2 2 2 2 2 Hottest 98 | 60 40 43 56 98 Shots Fired 409 | 6 37 117 155 94 Gun 386 | 6 34 101 151 94 Cannon . | . . . . . Launcher 23 | . 3 16 4 . Special . | . . . . . Kinetic 380 | 3 34 101 151 91 Thermal 3 | . . . . 3 Explosive 23 | . 3 16 4 . Electromagnetic 3 | 3 . . . . Robot Hit Streak 37 | 3 4 11 37 17 Robot Miss Streak 5 | 1 5 5 3 2 Penetration Max . | . . . . . Secondary Targets 5 | . . 2 1 2 Max Gunslinging Chain 1 | . . 1 1 1 Shots Hit Robots 277 | 3 16 67 120 71 Core Hits 155 | 3 14 47 64 27 Critical Kills 1 | . . . . 1 Critical Parts Destroyed 5 | . . 1 4 . Critical Strikes 6 | . . 1 4 1 Destroy 6 | . . 1 4 1 Melee Attacks 2 | . . . . 2 Impact 2 | . . . . 2 Slashing . | . . . . . Piercing . | . . . . . Sneak Attacks . | . . . . . Combat Hostiles . | . . . . . Follow-up Attacks . | . . . . . Damage Inflicted 5862 | 45 497 1894 2351 1075 Guns 3839 | 45 194 786 1739 1075 Cannons . | . . . . . Explosions 2023 | . 303 1108 612 . Melee . | . . . . . Ramming . | . . . . . Kinetic 3811 | 17 194 786 1739 1075 Thermal 41 | . . 41 . . Explosive 1982 | . 303 1067 612 . Electromagnetic 28 | 28 . . . . Impact . | . . . . . Slashing . | . . . . . Piercing . | . . . . . Highest Corruption . | . . . . . Average Corruption . | . . . . . Corruption Purged . | . . . . . Corruption Blocked . | . . . . . Overload Shots . | . . . . . Overflow Damage 57 | . . 57 . . Projectiles . | . . . . . Explosions 57 | . . 57 . . Melee . | . . . . . Knockbacks . | . . . . . Impact . | . . . . . Kinetic . | . . . . . Secondary . | . . . . . Self-Inflicted Damage 125 | . 22 103 . . Shots 4 | . 1 3 . . Rammed . | . . . . . Targets Rammed . | . . . . . Kicked . | . . . . . Crushed . | . . . . . Highest Temperature 40 | 40 . 20 8 . Average Temperature 11 | 23 . 4 8 . Received Heat Transfer 1063 | . 66 286 528 183 Siege Activations . | . . . . . Robots Corrupted . | . . . . . Combat Hostiles . | . . . . . Parts Fried . | . . . . . Impact Corruptions . | . . . . . Robots Melted . | . . . . . Combat Hostiles . | . . . . . Parts Melted . | . . . . . Heat Transferred 50 | . . 50 . . Parts Sabotaged . | . . . . . Parts Stolen . | . . . . . Parts Stripped . | . . . . . Power Chain Reactions . | . . . . . Missiles Intercepted . | . . . . . Alert | -11 -10 -10 -9 -9 ------- Run | Scr Mat Min Mat Sto Peak Influence 872 | 10 314 872 761 727 Initial 300 | . 6 69 290 300 Average 453 | 2 172 536 526 444 Maximum Alert Level 3 | . 1 3 3 3 Low Security (%) 17 | 100 70 22 . . Level 1 17 | . 29 7 12 49 Level 2 52 | . . 35 76 47 Level 3 12 | . . 34 11 2 Level 4 . | . . . . . Level 5 . | . . . . . High Security . | . . . . . Max Security . | . . . . . Squads Dispatched 12 | . 2 2 3 5 Investigation 1 | . 1 . . . Extermination . | . . . . . Reinforcement 4 | . 1 . 2 1 Assault 5 | . . 2 1 2 Garrison 2 | . . . . 2 Intercept . | . . . . . Searches Triggered . | . . . . . Construction Impeded . | . . . . . Haulers Reinforced . | . . . . . Active Scanning Responses . | . . . . . Cargo Convoy Interrupts . | . . . . . Stealth | -11 -10 -10 -9 -9 --------- Run | Scr Mat Min Mat Sto Distress Signals 10 | . 2 . 5 3 Communications Jammed . | . . . . . Distress Signals . | . . . . . Times Spotted 126 | . 14 33 58 21 Peak Tracking Total 7 | . 3 4 6 7 Tactical Retreats 8 | . 1 2 5 . Traps | -11 -10 -10 -9 -9 ------- Run | Scr Mat Min Mat Sto Traps Triggered 2 | . . . 2 . Indirectly . | . . . . . Trap Hack Attempts . | . . . . . Triggered . | . . . . . Disarmed . | . . . . . Reprogrammed . | . . . . . Reused . | . . . . . Traps Extracted . | . . . . . Installed . | . . . . . Triggered . | . . . . . Machines | -11 -10 -10 -9 -9 ---------- Run | Scr Mat Min Mat Sto Machines Disabled 7 | . 1 3 . 3 Max in Single Turn 3 | . 1 3 . 1 Machines Sabotaged . | . . . . . Garrisons Compromised . | . . . . . Overloaded Fab Kills . | . . . . . Hacking | -11 -10 -10 -9 -9 --------- Run | Scr Mat Min Mat Sto Machines Accessed 5 | . 1 1 3 . Terminals 4 | . 1 1 2 . Fabricators . | . . . . . Repair Stations . | . . . . . Recycling Units 1 | . . . 1 . Scanalyzers . | . . . . . Garrison Access . | . . . . . Total Hacks 11 | . 3 2 6 . Successful 4 | . 1 1 2 . Failed 7 | . 2 1 4 . Catastrophic 1 | . 1 . . . Database Lockouts . | . . . . . Manual 5 | . 2 . 3 . Terminals 10 | . 3 2 5 . Fabricators . | . . . . . Repair Stations . | . . . . . Recycling Units 1 | . . . 1 . Scanalyzers . | . . . . . Garrison Access . | . . . . . Terminal Hacks 3 | . 1 1 1 . Branch Access Points 1 | . . . 1 . Locate Traps 1 | . 1 . . . Zone Layout 1 | . . 1 . . Fabricator Hacks . | . . . . . Repair Station Hacks . | . . . . . Recycling Unit Hacks 1 | . . . 1 . Retrieve Components 1 | . . . 1 . Scanalyzer . | . . . . . Garrison Access Hacks . | . . . . . Unauthorized Hacks . | . . . . . Terminals . | . . . . . Fabricators . | . . . . . Repair Stations . | . . . . . Recycling Units . | . . . . . Scanalyzers . | . . . . . Garrison Access . | . . . . . Data Cores Recovered . | . . . . . Used . | . . . . . Hacking Detections 2 | . 1 . 1 . Full Trace Events 1 | . 1 . . . Feedback Events . | . . . . . Feedback Blocked . | . . . . . Robot Schematics Acquired . | . . . . . Robots Built . | . . . . . Authchips . | . . . . . Time . | . . . . . Total Robot Build Rating . | . . . . . Part Schematics Acquired . | . . . . . Parts Built . | . . . . . Authchips . | . . . . . Time . | . . . . . Total Part Build Rating . | . . . . . Parts Repaired . | . . . . . Time . | . . . . . Parts Recycled . | . . . . . Recycled Matter . | . . . . . Retrieved Matter . | . . . . . Retrieved Components 9 | . . . 9 . Parts Scanalyzed . | . . . . . Part Schematics Acquired . | . . . . . Parts Damaged . | . . . . . Bothacking | -11 -10 -10 -9 -9 ------------ Run | Scr Mat Min Mat Sto Used RIF Installer . | . . . . . Robots Hacked . | . . . . . Non-combat . | . . . . . Combat . | . . . . . Robot Hacks Applied . | . . . . . Relay Couplers Released . | . . . . . Fabnet Peak Effective % . | . . . . . Robots Rewired . | . . . . . Allies Hacked . | . . . . . Hacks Repelled . | . . . . . Allies | -11 -10 -10 -9 -9 -------- Run | Scr Mat Min Mat Sto Total Allies 3 | . . 1 . 2 Largest Group 2 | . . 1 . 2 Highest-Rated Group 62 | . . 31 . 62 Highest-Rated Ally 31 | . . 31 . 31 Total Orders . | . . . . . Ally Attacks 28 | . . 9 . 19 Total Damage 466 | . . 128 . 338 Kills 7 | . . 3 . 4 Allies Corrupted . | . . . . . Allies Melted . | . . . . . Intel | -11 -10 -10 -9 -9 ------- Run | Scr Mat Min Mat Sto Robot Analysis Total . | . . . . . Derelict Logs Recovered 2 | . . 2 . . Drone Launches . | . . . . . Drone Recoveries . | . . . . . Exploration | -11 -10 -10 -9 -9 ------------- Run | Scr Mat Min Mat Sto Turns Passed 3895 | 106 569 770 2036 414 Spaces Moved 1929 | 55 308 346 1063 157 Core 7 | 7 . . . . Treads 1879 | 48 308 346 1020 157 Legs . | . . . . . Wheels 43 | . . . 43 . Hover . | . . . . . Flight . | . . . . . Fastest Speed 50 | 50 160 160 155 160 Average Speed 160 | 153 160 160 161 164 Slowest Speed 240 | 200 160 160 240 240 Overloaded Moves . | . . . . . Propulsion Burnouts . | . . . . . Robots Hopped . | . . . . . Cave-ins Triggered . | . . . . . Exploration Rate (%) 52 | 5 61 80 85 33 Regions Visited 4 Branch Regions 2 Pre-discovered Areas 1 | . . 1 . . Known Exits Taken 1 | . . . 1 . Unknown Exits Taken 3 | 1 1 1 . . Scrap Searched 1 | . . 1 . . Spaces Dug 27 | . 14 13 . . Terrain Destroyed 206 | . 30 153 23 . Melee . | . . . . . Projectile . | . . . . . AOE 206 | . 30 153 23 . Terrain Rammed . | . . . . . Walls Destroyed . | . . . . . Machines Disabled . | . . . . . Actions | -11 -10 -10 -9 -9 --------- Run | Scr Mat Min Mat Sto Total 2307 | 67 346 441 1236 217 Wait 43 | . 1 7 34 1 Move 1925 | 54 307 345 1062 157 Hop . | . . . . . Pick Up 29 | 2 9 2 12 4 Fast Attach 14 | 7 . 2 5 . Attach 7 | . . 3 3 1 Detach 3 | . . . 3 . Swap 42 | 1 6 11 20 4 Drop 25 | . 3 2 19 1 Fire 217 | 3 20 69 78 47 Melee 2 | . . . . 2 Ram . | . . . . . Kick . | . . . . . Crush . | . . . . . Escape Stasis . | . . . . . Rewire . | . . . . . Trap . | . . . . . Miscellaneous . | . . . . . Route ------- -11/Scrapyard -10/Materials (discovered 3 exits: *Mat x2 / *Min) -10/Mines (discovered 2 exits: *Mat x2) -9/Materials (discovered 6 exits: [*Mat x3] / *Min x2 / *Sto) -9/Storage History --------- Turn | Location | Event 13 | -11/Scrapyard | Discovered new exit (range 16) 107 | -11/Scrapyard | Entered Materials 302 | -10/Materials | Discovered new exit (range 13) 303 | -10/Materials | Build established: Mutant 369 | -10/Materials | Discovered new exit (range 16) 566 | -10/Materials | Discovered new exit (range 10) 676 | -10/Materials | Entered Mines 689 | -10/Mines | Joined a pair of Derelicts in attacking an 0b10 outpost 931 | -10/Mines | Received a Rocket Launcher from a helpful Derelict 1013 | -10/Mines | Met a Derelict testing a Signal Generator 1064 | -10/Mines | Discovered new exit (range 6) 1144 | -10/Mines | Core integrity fell below 50% 1161 | -10/Mines | Assembled infested the area 1166 | -10/Mines | Assisted by a Guerilla fighting off Assembled 1223 | -10/Mines | Learned Materials emergency access door positions 1295 | -10/Mines | Learned location of 1 exit from Materials 1406 | -10/Mines | Discovered new exit (range 5) 1409 | -10/Mines | Learned location of Storage (-9) 1446 | -10/Mines | Entered Materials 1446 | -9/Materials | Evolved 2 slots: Propulsion x1, Utility x1 1447 | -9/Materials | Identified exit to Mines 1780 | -9/Materials | Discovered new exit (range 12) 2203 | -9/Materials | Build established: Scavenger-Mutant 2441 | -9/Materials | Discovered new exit (range 8) 2717 | -9/Materials | Discovered exit to Mines (range 14) 2947 | -9/Materials | Discovered new exit (range 10) 3046 | -9/Materials | First assault squad dispatched 3245 | -9/Materials | Identified exit to Storage 3390 | -9/Materials | Discovered new exit (range 11) 3482 | -9/Materials | Entered Storage 3670 | -9/Storage | Garrison activated, responded to threat 3759 | -9/Storage | Met a pair of Derelict thieves 3845 | -9/Storage | Garrison activated, responded to threat 3853 | -9/Storage | Core integrity fell below 50% 3865 | -9/Storage | Core integrity fell below 20% 3896 | -9/Storage | Destroyed by B-36 Bruiser with Hammer Last Messages --------------- 03848_ B-36 Bruiser destroyed. 03848_ Switching to secondary target: L-31 Rogue. 03848_ R-06 Scavenger collects Hammer. 03850_ Lgt. Treads destroyed. 03854_ R-06 Scavenger collects Aluminum Leg. 03857_ R-06 Scavenger collects Lgt. Treads. 03862_ Lgt. Angular Momentum Engine severed. 03862_ R-06 Scavenger collects Lgt. Angular Momentum Engine. 03865_ R-06 Scavenger collects Carbon-fiber Leg. 03866_ Acquired 43 matter. 03873_ L-31 Rogue destroyed. 03873_ Imp. Assault Rifle destroyed. 03880_ L-31 Rogue destroyed. 03881_ Acquired 17 matter. 03885_ R-06 Scavenger collects Imp. Heat Sink. 03885_ Acquired Katana. 03889_ R-06 Scavenger collects Imp. Heat Sink. 03892_ R-06 Scavenger collects Prototype Energy Cannon. 03892_ U-05 Engineer builds a Door. 03895_ R-06 Scavenger collects Heat Sink. Map ----- +----------------------------------------------------+ | ?????????????????# # # ! # | | ???????????????? # #% # # | | ???????????????? # + + # | | ???# #####+###+# """ """ # !#! # | | ?? # """ """ # # # | | ?? # """ """ # # ! ! # | | ?? + # # ]# | | ?????????###/### ###########/#+# # | | ???????????????# #???# # # | | ???????????????# #???# # ! # | | ???????????????# #???# ######## | | ???????????????# #???# #??????? | | ???????????????#!###############??????? | | ???????????????#!%# % #?????????? | | ???????????????#!!# #?????????? | | ???????????????#=!# """ """ #?????????? | | ???????????????# # """ """ #?????????? | | ???????????????# # """ "" #?????????? | | ???????????????# # #?????????? | | ???????????????# # ==[#?????????? | | ???????????????# + !=[#?????????? | | ???????????????#% ########+##?????????? | | ????????? #T### %#????### ##??######?? | | ?????????#k %! ##### [=#### ! !#?? | | ?????????# % %% r b ##T# !! #?? | | ?????????# u%% % @* ; " #?? | | ???????? %^ #####%=[ # !#?? | | ??????????"#####+###???##=!## " ! #?? | | ?????????G?????? ???????# %## #! !!#?? | | ????????????????!???????#= ##########?? | | ????????????????!???????# #??????????? | | ????????????????!???????# #??????????? | | ????????????????????????# T??????????? | | ????????????????????????# #??????????? | | ????????????????????????""""??????????? | | ??????????????????????????????????????? | | ??????????????????????????????????????? | | ??????????????????????????????????????? | | ??????????????????????????????????????? | | ??????????????????????????????????????? | | ??????????????????????????????????????? | | ??????????????????????????????????????? | | ??????????????????????????????????????? | | ??????????????????????????????????????? | | ??????????????????????????????????????? | | ??????????????????????????????????????? | | ??????????????????????????????????????? | | ??????????????????????????????????????? | | | | | +----------------------------------------------------+ Best States ------------- Heat Dissipation 42 Energy Generation 18 Energy Capacity 250 Matter Stores 300 Matter Capacity 300 Sight Range 16 Terrain Scan Density 10 Evasion (%) 40 Targeting Accuracy 5 Recoil Reduction 3 Item Schematics ----------------- None Robot Schematics ------------------ None Fabricated ------------ Nothing Alien Tech Used ----------------- None Achievements -------------- None Challenges ------------ None Game ------ Seed SwarmTacticalClaws Manual? 0 Play Time 00:31:51 Cumulative 310.9 hours Start 2022.04.07 @ 21:43:05 End 2022.04.08 @ 00:35:54 Sessions 1 Manual Loads 0 Difficulty Rogue Special Mode None Game No. 464 Rogue 464 Adventurer 0 Explorer 0 Win Type - Total 5 Types 3/0/1/1/0/0/0/0/0 Lore% 79 Gallery% 81 Achievement% 64 Wizard Run 0 Options --------- ASCII 0 Keyboard 1 Movement Numpad Keybinds 0 Fullscreen 2 Font 24/Smallcaps Map View 76x50 Tactical HUD 1 Map Filters NONE Filters NONE Steam 1 RUN: af3dc935-2371-4f8c-970e-1a20519b2128